bitfinex/quotes_SOLUSD_20241001
["timestamp","ask_amount","ask_price","bid_price","bid_amount"]
[1727794563098,6.6243,150.96,150.92,23.776884]
[1727794563611,16.5583,150.99,150.9,23.776884]
[1727794563990,6.6246,150.96,150.91,6.6261]
[1727794564509,20.538,151.1,150.93,30.048784]
[1727794564821,6.6216,151.02,150.97,6.6234]
[1727794565114,6.6224,151.01,150.95,23.1862]
[1727794565317,16.5509,151.05,150.96,6.6241]
[1727794565483,49.6443,151.08,150.98,6.6233]
[1727794565881,6.6208,151.04,150.99,6.6227]
[1727794566101,6.6213,151.03,150.98,16.5581]
[1727794566495,16.5475,151.08,150.98,16.5581]
[1727794566713,8.5812236,151.08,150.97,16.5237]
[1727794566890,1.08690361,151.12,150.97,16.5237]
[1727794566891,16.553,151.03,150.97,16.5237]
[1727794567615,16.5494,151.07,150.97,16.5237]
[1727794567792,16.5494,151.07,150.97,23.1471]
[1727794567793,6.6217,151.02,150.97,23.1471]
[1727794568710,6.6207,151.05,151.0,6.6224]
[1727794568913,6.6208,151.04,150.99,6.6229]
[1727794569087,16.5452,151.11,150.98,23.776884]
[1727794569287,6.6204,151.05,150.98,30.399884]
[1727794569510,6.6212,151.03,150.98,30.399884]
[1727794569696,6.6206,151.05,150.99,6.6229]
[1727794569898,6.6216,151.02,150.98,23.776884]
[1727794570210,6.6212,151.03,150.98,23.776884]
[1727794571110,20.0,151.08,150.98,23.776884]
[1727794571315,6.6208,151.04,151.0,16.556]
[1727794571502,6.6208,151.04,150.98,30.400184]
[1727794571888,20.0,151.08,150.98,23.776884]
[1727794572091,20.0,151.08,150.99,1.32416586]
[1727794572290,20.0,151.08,150.98,23.776884]
[1727794572794,6.6212,151.03,150.98,30.400184]
[1727794573090,20.0,151.08,150.98,23.776884]
[1727794573302,16.5495,151.07,150.98,23.776884]
[1727794573618,6.6211,151.04,150.98,30.400084]
[1727794574109,6.6211,151.04,150.99,6.6228]
[1727794574300,6.6202,151.06,151.0,6.6224]
[1727794574509,6.6205,151.05,151.0,6.6224]
[1727794574889,6.6233,150.99,150.94,6.6251]
[1727794575089,33.0983,151.07,150.93,6.2719]
[1727794575289,9.59020642,151.1,150.93,6.2719]
[1727794575290,0.71732141,151.1,150.93,6.2719]
[1727794575511,33.0888,151.11,150.97,6.6234]
[1727794575512,6.6215,151.03,150.97,6.6234]
[1727794575702,20.0,151.07,150.97,6.6234]
[1727794576007,6.6216,151.02,150.97,6.6234]
[1727794576391,16.5507,151.06,150.93,22.8358]
[1727794576698,16.5507,151.06,150.93,6.2719]
[1727794577012,6.622,151.02,150.97,6.6237]
[1727794577212,16.5531,151.03,150.93,22.8356]
[1727794577691,6.6239,150.97,150.93,6.2719]
[1727794577900,6.6229,151.0,150.94,7.94933741]
[1727794578587,6.6229,151.0,150.94,6.6247]
[1727794578905,6.622,151.01,150.96,6.6241]
[1727794579510,6.6228,151.0,150.95,6.6246]
[1727794579917,16.5499,151.06,150.95,6.6246]
[1727794579918,6.6217,151.02,150.97,6.6237]
[1727794580221,6.6217,151.02,150.98,1.32428439]
[1727794580402,6.6217,151.02,150.97,6.6237]
[1727794580710,6.622,151.01,150.97,6.6237]
[1727794581092,16.5499,151.06,150.95,23.1853]
[1727794581093,6.6229,151.0,150.95,23.1853]
[1727794581295,6.6231,150.99,150.95,16.5607]
[1727794581498,20.0,151.06,150.95,16.5607]
[1727794581707,16.549,151.07,150.98,6.6233]
[1727794581892,16.549,151.07,150.99,1.32421359]
[1727794582212,16.549,151.07,150.97,23.1824]
[1727794582407,6.6217,151.02,150.97,23.1821]
[1727794582624,16.549,151.07,150.98,1.32419501]
[1727794582985,16.549,151.07,150.97,16.5587]
[1727794583186,16.549,151.07,150.93,6.2719]
[1727794583187,16.5514,151.05,150.94,16.5624]
[1727794583429,33.0983,151.07,150.93,6.2719]
[1727794583430,16.554,151.03,150.93,6.2719]
[1727794583619,33.0983,151.07,150.93,6.2719]
[1727794583620,6.6243,150.96,150.93,6.2719]
[1727794583796,33.0983,151.07,150.93,6.2719]
[1727794583797,6.6226,151.0,150.93,22.8353]
[1727794584110,16.5522,151.04,150.93,22.8353]
[1727794584111,16.5522,151.04,150.96,6.6242]
[1727794584311,6.6233,150.99,150.95,16.5609]
[1727794584495,6.6224,151.01,150.96,1.32443373]
[1727794584691,6.6224,151.01,150.96,6.6239]
[1727794585416,6.6226,151.0,150.95,16.5609]
[1727794585925,6.6226,151.0,150.95,23.1853]
[1727794586124,6.6235,150.98,150.93,12.8971]
[1727794586291,6.6247,150.95,150.93,6.2719]
[1727794586501,6.6251,150.94,150.93,6.2719]
[1727794587619,6.6257,150.93,150.88,6.6274]
[1727794587799,6.6269,150.9,150.86,16.5712]
[1727794587999,16.5638,150.94,150.85,6.5334]
[1727794588299,6.6278,150.88,150.85,6.5334]
[1727794588516,6.6268,150.91,150.85,13.1624]
[1727794589022,16.5638,150.94,150.85,13.1624]
[1727794589317,6.627,150.9,150.85,13.1624]
[1727794589521,16.5638,150.94,150.85,6.5334]
[1727794589719,20.0,150.93,150.85,6.5334]
[1727794589910,6.6282,150.87,150.85,6.5334]
[1727794590412,6.6278,150.88,150.85,6.5334]
[1727794590616,6.6273,150.89,150.85,6.5334]
[1727794591225,16.5594,150.98,150.86,1.32541271]
[1727794591723,6.6251,150.94,150.86,1.32541271]
[1727794592103,6.6251,150.94,150.85,6.5334]
[1727794592821,6.6251,150.94,150.89,6.6273]
[1727794593001,6.6256,150.93,150.88,6.6277]
[1727794593324,6.6261,150.92,150.87,23.1977]
[1727794594408,16.5555,151.01,150.89,16.5673]
[1727794594607,6.6229,151.0,150.94,6.625]
[1727794594818,16.552,151.04,150.91,38.3085]
[1727794594819,16.552,151.04,150.95,1.32457561]
[1727794594999,6.6225,151.0,150.96,6.6242]
[1727794595202,6.6225,151.0,150.97,1.32442628]
[1727794596136,6.6212,151.03,150.99,6.6229]
[1727794596315,6.6207,151.05,151.01,6.6147]
[1727794596813,16.5455,151.1,151.02,6.6215]
[1727794596814,6.6197,151.07,151.02,6.6215]
[1727794597011,6.6199,151.06,151.01,29.1629]
[1727794597214,6.6216,151.02,151.01,22.5409]
[1727794597415,16.5513,151.05,150.97,29.341]
[1727794597723,48.32488146,151.11,150.97,22.7173]
[1727794597929,6.6208,151.04,150.99,6.6228]
[1727794598225,6.6194,151.07,151.02,6.6216]
[1727794598607,22.90749645,151.11,151.0,6.6224]
[1727794599104,6.6199,151.06,151.01,6.622]
[1727794600115,6.6194,151.07,151.02,6.6215]
[1727794600513,16.5444,151.11,150.99,16.5566]
[1727794600709,6.6199,151.06,151.01,6.622]
[1727794601115,6.6195,151.07,151.02,6.6215]
[1727794601321,16.5444,151.11,151.04,6.6207]
[1727794601322,6.6189,151.09,151.04,6.6207]
[1727794601514,6.6186,151.09,151.05,1.3236588]
[1727794601919,6.6198,151.07,151.02,6.6215]
[1727794602438,16.544,151.12,151.01,23.1763]
[1727794602439,6.6199,151.06,151.01,23.1763]
[1727794602608,6.6199,151.06,150.97,22.7173]
[1727794602609,16.5461,151.1,150.98,16.5581]
[1727794602808,16.5483,151.08,150.97,22.7173]
[1727794603109,6.622,151.02,150.97,29.341]
[1727794603714,6.6224,151.01,150.97,22.7173]
[1727794603922,16.5504,151.06,150.97,22.7173]
[1727794604237,16.5529,151.04,150.97,22.7173]
[1727794604739,20.0,151.03,150.97,22.7173]
[1727794605027,20.0,151.03,150.89,6.062]
[1727794605028,6.6251,150.95,150.89,6.062]
[1727794605329,6.6255,150.93,150.89,12.6892]
[1727794605532,6.6253,150.94,150.89,12.6892]
[1727794605733,16.5582,150.99,150.89,6.062]
[1727794605959,6.6264,150.92,150.89,6.062]
[1727794606140,6.6266,150.91,150.89,6.062]
[1727794606642,6.6259,150.93,150.89,7.38712691]
[1727794606820,16.5604,150.97,150.89,7.38712691]
[1727794606821,6.6266,150.91,150.89,6.062]
[1727794607008,16.5604,150.97,150.89,6.062]
[1727794607209,6.6269,150.9,150.89,6.062]
[1727794607405,16.5628,150.95,150.89,7.38725895]
[1727794607711,20.0,150.97,150.9,1.32521749]
[1727794608127,6.6257,150.93,150.9,1.32521749]
[1727794608331,39.53158744,151.03,150.89,6.062]
[1727794608626,6.6225,151.0,150.95,6.6245]
[1727794608811,16.5508,151.05,150.89,6.062]
[1727794608812,6.622,151.02,150.9,50.0]
[1727794609010,33.098,151.07,150.9,50.0]
[1727794609011,6.6212,151.03,150.96,16.5606]
[1727794609236,6.6212,151.03,150.98,22.3908]
[1727794610115,6.6212,151.03,150.98,29.014]
[1727794610718,6.6212,151.03,150.99,1.32422164]
[1727794610946,16.547,151.09,150.98,22.3908]
[1727794611236,16.547,151.09,150.99,23.1795]
[1727794611237,6.6207,151.04,150.99,23.1795]
[1727794611533,6.6205,151.05,151.0,6.6224]
[1727794611738,6.6207,151.04,150.99,23.1794]
[1727794611930,16.547,151.09,150.98,22.3908]
[1727794612131,16.547,151.09,150.99,6.6228]
[1727794612314,16.547,151.09,151.01,6.6219]
[1727794612511,16.547,151.09,150.98,22.3908]
[1727794612708,6.6204,151.05,151.0,6.6224]
[1727794613463,16.547,151.09,150.98,22.3908]
[1727794613738,6.6212,151.03,150.98,29.0141]
[1727794613917,6.622,151.01,150.98,22.3908]
[1727794614241,16.5495,151.07,150.98,22.3908]
[1727794614242,6.6216,151.02,150.98,22.3908]
[1727794614537,16.5495,151.07,150.98,22.3908]
[1727794614725,6.6216,151.02,150.98,22.3908]
[1727794614926,6.6212,151.03,150.99,1.32423908]
[1727794615126,6.6208,151.04,150.99,7.94683908]
[1727794615437,6.6212,151.03,150.99,6.6226]
[1727794615620,6.6212,151.03,150.98,45.5718]
[1727794615945,6.6217,151.02,150.98,22.3908]
[1727794616116,6.622,151.02,150.98,22.3908]
[1727794616434,6.621,151.04,150.99,1.32419872]
[1727794616734,6.6229,150.99,150.98,22.3908]
[1727794617435,6.6229,150.99,150.98,6.263]
[1727794617634,6.6237,150.98,150.95,1.32451557]
[1727794617836,6.6237,150.98,150.93,28.9869]
[1727794618134,6.6238,150.97,150.93,28.9869]
[1727794618848,16.5535,151.03,150.93,22.3614]
[1727794619012,6.6206,151.05,151.0,6.6224]
[1727794619337,33.0895,151.11,150.93,105.4881]
[1727794619338,6.622,151.02,150.97,23.1825]
[1727794619516,6.6224,151.01,150.96,6.6241]
[1727794619719,6.6224,151.01,150.93,55.4881]
[1727794619720,6.6216,151.02,150.97,6.6237]
[1727794619942,6.6213,151.03,150.98,6.6233]
[1727794620115,16.5479,151.08,151.03,6.6208]
[1727794620116,6.6193,151.08,151.03,6.6208]
[1727794620313,6.6193,151.08,151.03,21.8621]
[1727794620314,6.6191,151.08,151.03,21.8621]
[1727794620528,6.6191,151.08,151.04,1.32374012]
[1727794620724,6.6185,151.1,151.05,7.94393845]
[1727794620923,6.6185,151.1,151.05,6.6202]
[1727794621126,16.5412,151.14,151.04,23.1718]
[1727794621329,6.6195,151.07,151.03,15.2413]
[1727794621638,39.62276301,151.15,151.03,15.2413]
[1727794621639,16.5459,151.1,151.03,15.2413]
[1727794622148,6.6207,151.04,151.03,15.2413]
[1727794622348,16.5504,151.06,150.98,22.0422]
[1727794622651,16.5504,151.06,150.98,28.6655]
[1727794622817,6.6218,151.02,150.98,22.0422]
[1727794623632,16.5504,151.06,150.98,22.0422]
[1727794623837,6.6229,150.99,150.98,6.2083]
[1727794624024,33.0976,151.07,150.94,6.6247]
[1727794624025,20.0,151.06,150.94,6.5293]
[1727794624227,6.6242,150.97,150.94,6.5293]
[1727794624448,6.6225,151.0,150.95,6.6246]
[1727794624771,6.6195,151.07,151.02,6.6215]
[1727794625231,6.6195,151.07,151.03,1.32386168]
[1727794625741,40.86430709,151.15,151.0,16.5554]
[1727794625923,16.5472,151.09,151.0,16.5554]
[1727794626130,40.86430709,151.15,151.03,22.0766]
[1727794626131,16.5436,151.12,151.03,22.0766]
[1727794626325,6.6189,151.09,151.04,7.94426252]
[1727794626522,7.78330709,151.15,151.05,17.87427328]
[1727794626727,6.6177,151.11,151.06,6.6197]
[1727794627020,6.6177,151.11,151.07,6.6194]
[1727794627651,16.5396,151.16,151.06,6.6198]
[1727794627944,6.6189,151.09,151.04,6.6207]
[1727794628152,16.5422,151.13,151.03,22.0766]
[1727794628153,6.6194,151.07,151.03,22.0766]
[1727794628457,6.6194,151.07,151.04,1.32376479]
[1727794628751,6.6186,151.09,151.04,6.6207]
[1727794629248,6.6195,151.07,151.03,21.8362574]
[1727794629452,6.619,151.08,151.04,1.32375899]
[1727794629747,6.6194,151.07,151.03,28.4573574]
[1727794629930,6.6194,151.07,151.04,1.32370978]
[1727794630245,6.6194,151.07,151.04,1.32371455]
[1727794630752,33.0807,151.15,150.98,15.3483]
[1727794630753,6.6229,150.99,150.98,15.3483]
[1727794632941,6.6216,151.03,150.98,21.9713]
[1727794633137,6.6217,151.02,150.98,15.3483]
[1727794633340,16.5468,151.09,150.99,1.32411524]
[1727794633640,16.5468,151.09,150.99,16.5564]
[1727794633824,6.6204,151.05,151.0,6.6221]
[1727794634023,16.5468,151.09,151.0,6.622]
[1727794634024,6.62,151.06,151.0,6.622]
[1727794634232,6.62,151.06,151.01,7.94584564]
[1727794634420,6.6204,151.05,151.0,6.6224]
[1727794634627,6.6202,151.06,151.01,6.6219]
[1727794634819,6.6204,151.05,151.0,6.6224]
[1727794635028,6.6204,151.05,151.01,6.622]
[1727794635537,6.62,151.06,151.01,6.622]
[1727794636649,16.5437,151.12,151.02,1.32382073]
[1727794636852,6.6193,151.08,151.03,6.6211]
[1727794637038,16.5458,151.1,151.01,16.5545]
[1727794637238,16.5458,151.1,150.98,15.3483]
[1727794637239,6.6207,151.04,151.0,6.6224]
[1727794637432,16.5458,151.1,151.0,6.6224]
[1727794637637,6.6199,151.06,151.01,1.32380185]
[1727794637859,16.5426,151.13,151.01,1.32380185]
[1727794638145,6.6199,151.06,151.02,22.8278]
[1727794638353,33.0732,151.18,151.03,17.24565325]
[1727794638557,47.547861,151.25,151.11,6.6176]
[1727794638731,47.547861,151.25,151.12,7.95474133]
[1727794638929,1.1521168,151.25,151.15,6.6159]
[1727794639127,5.7107,151.32,151.16,1.32253948]
[1727794639332,6.6133,151.21,151.14,16.5402]
[1727794639553,17.3606168,151.27,151.14,16.5402]
[1727794639768,6.6133,151.21,151.16,6.6153]
[1727794639934,6.6124,151.24,151.17,1.3224592]
[1727794640136,0.8338168,151.27,151.2,6.6136]
[1727794640443,7.4445168,151.27,151.21,6.0483]
[1727794640639,6.6111,151.26,151.21,12.6613]
[1727794640862,0.8338168,151.27,151.23,15.7593]
[1727794641650,0.8338168,151.27,151.24,7.93337157]
[1727794642148,6.6081,151.33,151.27,6.6106]
[1727794642349,6.6076,151.35,151.28,1.32138989]
[1727794642558,7.47048384,151.42,151.29,1.3213643]
[1727794642849,1.15045516,151.39,151.3,50.0]
[1727794643153,0.8338168,151.42,151.36,6.6066]
[1727794643358,0.8338168,151.42,151.32,121.35127781]
[1727794643359,0.8338168,151.42,151.37,12.7853]
[1727794643650,0.8338168,151.42,151.37,6.1791]
[1727794643852,6.605,151.4,151.37,6.1791]
[1727794644226,0.8338168,151.42,151.38,1.32083169]
[1727794644430,0.8338168,151.42,151.37,6.1791]
[1727794644651,7.4380168,151.42,151.37,6.1791]
[1727794644858,0.8338168,151.42,151.37,6.1791]
[1727794645026,6.6047,151.41,151.37,6.1791]
[1727794645226,6.6064,151.37,151.35,15.6265]
[1727794645426,6.6072,151.35,151.31,6.4294]
[1727794645851,0.8338168,151.42,151.31,6.4294]
[1727794646074,6.6081,151.33,151.32,1.32103975]
[1727794646349,6.6081,151.33,151.31,6.4294]
[1727794646751,6.6081,151.33,151.32,1.32140143]
[1727794646948,16.5153,151.38,151.32,1.32140143]
[1727794646949,6.6074,151.35,151.32,1.32140143]
[1727794647134,6.6074,151.35,151.31,6.4294]
[1727794647454,6.6074,151.35,151.32,1.32128476]
[1727794647652,50.3661168,151.42,151.32,1.32128476]
[1727794647653,6.6067,151.36,151.32,1.32128476]
[1727794648252,20.0,151.41,151.28,16.2319]
[1727794648465,20.0,151.41,151.25,6.1262]
[1727794648466,16.5172,151.36,151.25,6.1262]
[1727794648930,16.5208,151.33,151.25,6.1262]
[1727794649126,6.6111,151.26,151.25,6.1262]
[1727794649835,33.033,151.37,151.21,16.6088]
[1727794650040,33.0431,151.32,151.21,16.6088]
[1727794650251,6.6134,151.21,151.18,6.3341]
[1727794650855,6.6128,151.22,151.18,6.3341]
[1727794651046,33.0431,151.32,151.19,1.3223787]
[1727794651248,16.5232,151.31,151.19,6.6137]
[1727794651836,6.6134,151.21,151.18,6.3341]
[1727794652354,16.5291,151.25,151.18,6.3341]
[1727794652730,16.5291,151.25,151.19,1.3226627]
[1727794652933,6.6137,151.2,151.19,1.3226627]
[1727794653159,16.5325,151.22,151.14,15.7133]
[1727794653662,6.6168,151.13,151.11,6.2233]
[1727794653958,6.616,151.15,151.11,6.2233]
[1727794654162,6.6144,151.19,151.12,1.32315296]
[1727794654359,6.6134,151.21,151.15,6.6159]
[1727794654664,6.6137,151.2,151.16,1.32258095]
[1727794654963,6.6137,151.2,151.17,1.32262279]
[1727794655167,6.6137,151.2,151.14,16.5408]
[1727794655458,16.53,151.24,151.11,12.8407]
[1727794655639,6.616,151.15,151.11,6.2233]
[1727794656057,33.0623,151.23,151.12,7.9398452]
[1727794656241,6.6133,151.22,151.13,16.5419]
[1727794656450,16.5299,151.25,151.13,16.5419]
[1727794656451,6.6135,151.21,151.16,6.6154]
[1727794656646,6.6135,151.21,151.14,7.93843362]
[1727794656953,6.6153,151.17,151.11,12.8409]
[1727794657155,16.5326,151.22,151.11,12.8409]
[1727794657956,6.615,151.18,151.12,1.32285431]
[1727794658477,16.5326,151.22,151.12,16.5431]
[1727794658642,39.7082468,151.28,151.11,6.2233]
[1727794658643,6.6164,151.14,151.11,6.2233]
[1727794658838,6.6159,151.15,151.11,6.2233]
[1727794659061,6.6159,151.16,151.11,6.2233]
[1727794659260,16.5311,151.23,151.12,1.32297173]
[1727794659572,6.6146,151.18,151.14,16.5408]
[1727794659859,6.6142,151.19,151.15,1.32280975]
[1727794660269,16.5344,151.2,151.11,22.7674]
[1727794660765,6.6154,151.17,151.12,1.32295532]
[1727794660943,6.6154,151.17,151.11,22.7674]
[1727794661148,6.6154,151.17,151.11,29.3849]
[1727794661749,6.6164,151.14,151.11,6.2233]
[1727794661963,6.6168,151.13,151.12,1.32309399]
[1727794662154,6.6172,151.12,151.11,6.2233]
[1727794662866,6.6186,151.09,151.07,15.348]
[1727794663045,6.6186,151.09,151.07,16.67153603]
[1727794663667,6.6181,151.1,151.07,16.67153603]
[1727794663840,6.619,151.08,151.07,15.348]
[1727794664464,6.6186,151.09,151.07,15.348]
[1727794665238,6.6198,151.06,151.05,6.2593]
[1727794666764,16.5484,151.08,151.01,15.3757]
[1727794666948,16.5484,151.08,151.0,6.059]
[1727794666949,20.0,151.11,151.0,6.059]
[1727794667147,6.6225,151.0,150.96,16.5604]
[1727794667648,6.6221,151.01,150.96,16.5604]
[1727794668044,16.5504,151.06,150.96,16.5604]
[1727794668352,6.6212,151.03,150.98,6.6233]
[1727794668669,6.6208,151.04,150.99,7.94700325]
[1727794669465,16.5493,151.07,150.9,56.28685165]
[1727794669671,53.0962,151.08,150.89,6.1472]
[1727794669866,6.6233,150.99,150.94,6.625]
[1727794670549,6.6225,151.0,150.95,1.32450182]
[1727794670765,6.6225,151.0,150.96,1.32440712]
[1727794670956,16.5518,151.05,150.96,17.88410712]
[1727794671255,16.5518,151.05,150.96,16.5597]
[1727794671564,16.5518,151.05,150.88,73.07697102]
[1727794671565,6.6265,150.91,150.88,0.8338168]
[1727794672274,16.5638,150.94,150.88,0.8338168]
[1727794672472,6.6273,150.89,150.88,0.8338168]
[1727794673563,6.6269,150.9,150.88,0.8338168]
[1727794673876,6.6264,150.92,150.88,0.8338168]
[1727794674055,6.626,150.92,150.89,1.32531485]
[1727794674373,6.6265,150.91,150.88,0.8338168]
[1727794674568,38.8248,151.0,150.88,0.8338168]
[1727794674768,6.6273,150.89,150.88,0.8338168]
[1727794676648,6.6268,150.91,150.88,0.8338168]
[1727794676854,9.05709965,151.16,150.89,22.5134]
[1727794677176,2.0,151.11,150.89,33.18529322]
[1727794677349,16.5501,151.06,150.92,16.5644]
[1727794677547,6.6229,151.0,150.93,6.6255]
[1727794677785,33.0974,151.07,150.92,16.5644]
[1727794678075,16.5534,151.03,150.89,22.5134]
[1727794678250,6.6256,150.93,150.89,6.6484]
[1727794679480,6.6256,150.93,150.88,17.4026168]
[1727794679661,6.6256,150.93,150.68,26.51]
[1727794679662,6.629,150.86,150.73,8.07076073]
[1727794679865,6.629,150.86,150.79,23.2106]
[1727794680159,20.0,150.93,150.79,23.2106]
[1727794680160,20.0,150.93,150.79,16.5789]
[1727794680349,20.0,150.93,150.8,1.32585]
[1727794680653,6.6277,150.89,150.81,7.95636326]
[1727794680853,20.0,150.93,150.81,1.32566326]
[1727794681065,6.627,150.9,150.82,16.5755]
[1727794681262,6.627,150.9,150.84,6.6294]
[1727794681463,6.627,150.9,150.85,1.32544434]
[1727794682061,6.627,150.9,150.86,1.32540206]
[1727794682368,6.6269,150.9,150.84,6.6294]
[1727794682751,16.5621,150.95,150.83,6.6299]
[1727794683068,6.6291,150.85,150.8,6.2526]
[1727794684352,16.5686,150.89,150.8,6.2526]
[1727794684581,6.63,150.83,150.81,1.32583519]
[1727794684780,16.5686,150.89,150.81,1.32583519]
[1727794684781,6.6295,150.84,150.81,1.32583519]
[1727794685157,20.0,150.91,150.81,1.32583519]
[1727794685357,6.6282,150.87,150.81,7.95653519]
[1727794685988,6.6282,150.87,150.81,6.6307]
[1727794686357,6.6291,150.85,150.8,12.8837]
[1727794686562,6.6288,150.86,150.81,7.95641657]
[1727794686761,20.0,150.93,150.82,7.95562584]
[1727794686971,20.0,150.93,150.82,1.32562584]
[1727794687174,6.6278,150.88,150.83,6.6298]
[1727794687977,6.6271,150.9,150.84,7.95478929]
[1727794688281,6.6274,150.89,150.85,1.3254093]
[1727794688509,6.6274,150.89,150.84,6.6293]
[1727794688661,6.6278,150.88,150.81,16.5768]
[1727794689980,6.6282,150.87,150.83,6.6299]
[1727794690280,6.6286,150.86,150.81,23.2072]
[1727794690466,16.5681,150.9,150.8,6.2526]
[1727794690960,6.6296,150.84,150.8,6.2526]
[1727794691581,16.5681,150.9,150.8,6.2526]
[1727794691775,16.5681,150.9,150.81,1.32576146]
[1727794691975,6.6286,150.86,150.81,7.95636146]
[1727794692175,6.6281,150.88,150.82,6.6303]
[1727794692376,6.6286,150.87,150.83,1.32558367]
[1727794693073,6.6286,150.87,150.83,7.95548367]
[1727794693277,6.6286,150.87,150.82,6.6303]
[1727794693471,6.625,150.95,150.9,6.6268]
[1727794693685,53.43019238,151.01,150.9,7.95198986]
[1727794693686,6.6244,150.96,150.9,7.95198986]
[1727794693871,6.6237,150.98,150.92,6.6259]
[1727794694192,6.6234,150.98,150.93,7.95017796]
[1727794694373,6.6233,150.99,150.93,7.95017796]
[1727794694566,6.6233,150.99,150.93,6.6255]
[1727794694766,6.6233,150.99,150.91,22.6569]
[1727794695073,6.6233,150.99,150.94,6.625]
[1727794695475,6.6225,151.0,150.94,6.625]
[1727794695661,16.552,151.04,150.94,6.625]
[1727794695864,6.6229,150.99,150.94,6.625]
[1727794696470,6.6234,150.98,150.92,6.6258]
[1727794696784,6.6253,150.94,150.91,6.0918]
[1727794696997,6.6247,150.96,150.92,1.32494981]
[1727794697171,16.5553,151.01,150.91,6.0918]
[1727794697690,6.6251,150.95,150.91,6.0918]
[1727794698191,6.626,150.92,150.91,6.0918]
[1727794698371,6.6256,150.93,150.91,6.0918]
[1727794698786,6.626,150.92,150.91,6.0918]
[1727794698976,6.626,150.92,150.89,15.0395]
[1727794699187,6.6265,150.91,150.89,15.0395]
[1727794699571,6.6259,150.93,150.89,15.0395]
[1727794699769,20.0,150.97,150.89,15.0395]
[1727794700090,6.6261,150.92,150.89,15.0395]
[1727794700289,16.5587,150.98,150.89,15.0395]
[1727794700290,20.0,150.97,150.89,15.0395]
[1727794700476,33.1141,151.0,150.86,6.2038]
[1727794700477,6.6282,150.87,150.86,6.2038]
[1727794700797,33.123,150.96,150.85,1.32561154]
[1727794700798,16.567,150.91,150.85,1.32561154]
[1727794701098,6.6277,150.89,150.85,1.32561154]
[1727794702094,6.6278,150.88,150.85,1.32561154]
[1727794702483,6.6286,150.86,150.84,15.1001]
[1727794702984,6.6282,150.87,150.84,15.1001]
[1727794703204,6.6282,150.87,150.85,1.32559874]
[1727794703778,6.6265,150.91,150.86,7.95379866]
[1727794704092,6.6274,150.89,150.84,31.6732]
[1727794704274,6.627,150.9,150.85,1.32541088]
[1727794704480,16.5621,150.95,150.86,16.5709]
[1727794704481,6.6263,150.92,150.86,16.5709]
[1727794704685,6.6263,150.92,150.87,6.6281]
[1727794704990,16.5621,150.95,150.86,16.5709]
[1727794704991,6.6269,150.9,150.86,16.5709]
[1727794705574,6.6269,150.9,150.86,17.89620949]
[1727794705776,6.6269,150.9,150.86,24.52470949]
[1727794706004,6.6255,150.94,150.88,6.6273]
[1727794706199,16.5589,150.98,150.89,1.32511224]
[1727794706377,16.5589,150.98,150.9,7.95186996]
[1727794706884,6.6248,150.95,150.91,6.3904]
[1727794709182,16.5589,150.98,150.91,6.3904]
[1727794709602,6.6256,150.93,150.92,1.32503615]
[1727794709787,6.6256,150.93,150.91,6.3904]
[1727794710400,6.626,150.92,150.91,6.3904]
[1727794710800,45.50555209,151.04,150.91,6.3904]
[1727794710801,6.6233,150.99,150.91,6.3904]
[1727794711034,6.6247,150.95,150.92,1.32480233]
[1727794711208,16.557,151.0,150.91,6.3904]
[1727794711391,6.6252,150.94,150.91,6.3904]
[1727794712098,6.6252,150.94,150.92,1.32499147]
[1727794712518,6.6252,150.94,150.91,6.3904]